[Event "NK ABC Kwalificatie 2"]
[Site "Zoetermeer, Netherlands"]
[Date "2025.01.04"]
[Round "4.5"]
[White "Zhu, Chenwu"]
[Black "Garay, Enzo"]
[Result "1-0"]
[TimeControl "55+10"]
[WhiteFideId "8733846"]
[BlackFideId "8989948"]
[WhiteElo "2177"]
[BlackElo "1811"]

1. e4 {[%clk 00:55:13]} e5 {[%clk 00:55:00]} 2. Nf3 {[%clk 00:55:16]} Nc6
{[%clk 00:55:04]} 3. Bb5 {[%clk 00:54:37]} a6 {[%clk 00:54:54]} 4. Ba4 {[%clk
00:54:41]} d6 {[%clk 00:54:53]} 5. O-O {[%clk 00:53:25]} Nf6 {[%clk 00:54:42]}
6. Re1 {[%clk 00:52:02]} b5 {[%clk 00:54:42]} 7. Bb3 {[%clk 00:52:04]} Be7
{[%clk 00:54:45]} 8. c3 {[%clk 00:51:49]} O-O {[%clk 00:52:16]} 9. h3 {[%clk
00:51:58]} Nb8 {[%clk 00:51:04]} 10. d4 {[%clk 00:51:59]} Nbd7 {[%clk
00:50:52]} 11. Nbd2 {[%clk 00:51:31]} c5 {[%clk 00:50:09]} 12. Nf1 {[%clk
00:50:33]} Re8 {[%clk 00:48:33]} 13. Ng3 {[%clk 00:49:55]} Bf8 {[%clk
00:45:21]} 14. a4 {[%clk 00:49:45]} Bb7 {[%clk 00:44:24]} 15. d5 {[%clk
00:48:48]} c4 {[%clk 00:43:22]} 16. Bc2 {[%clk 00:48:42]} Nc5 {[%clk 00:43:22]}
17. Bg5 {[%clk 00:47:07]} h6 {[%clk 00:40:06]} 18. Be3 {[%clk 00:47:00]} Qc7
{[%clk 00:39:47]} 19. Qd2 {[%clk 00:45:21]} Kh7 {[%clk 00:30:51]} 20. Ra3
{[%clk 00:44:35]} g6 {[%clk 00:30:09]} 21. Rea1 {[%clk 00:44:22]} Bg7 {[%clk
00:28:12]} 22. Nh2 {[%clk 00:42:49]} Reb8 {[%clk 00:25:28]} 23. a5 {[%clk
00:42:00]} Bc8 {[%clk 00:25:16]} 24. Rf1 {[%clk 00:41:45]} g5 {[%clk 00:23:08]}
25. Raa1 {[%clk 00:39:51]} Nb3 {[%clk 00:21:43]} 26. Bxb3 {[%clk 00:39:58]}
cxb3 {[%clk 00:21:46]} 27. Qd3 {[%clk 00:33:53]} Bd7 {[%clk 00:20:58]} 28. Bb6
{[%clk 00:33:09]} Qc4 {[%clk 00:18:45]} 29. Qxc4 {[%clk 00:32:41]} bxc4 {[%clk
00:18:46]} 30. Bc7 {[%clk 00:32:15]} Re8 {[%clk 00:16:59]} 31. Bxd6 {[%clk
00:32:00]} h5 {[%clk 00:16:56]} 32. Rfe1 {[%clk 00:30:49]} Kg6 {[%clk
00:16:08]} 33. Nf3 {[%clk 00:30:00]} Ng8 {[%clk 00:15:03]} 34. Nd2 {[%clk
00:29:03]} Rac8 {[%clk 00:14:32]} 35. Ngf1 {[%clk 00:28:28]} Nh6 {[%clk
00:14:07]} 36. Ne3 {[%clk 00:28:02]} Bb5 {[%clk 00:14:10]} 37. g4 {[%clk
00:26:49]} h4 {[%clk 00:12:34]} 38. Nb1 {[%clk 00:25:52]} Bf8 {[%clk 00:09:42]}
39. Bxf8 {[%clk 00:25:56]} Rxf8 {[%clk 00:09:45]} 40. Na3 {[%clk 00:25:50]} Rc5
{[%clk 00:09:23]} 41. Nxb5 {[%clk 00:25:31]} axb5 {[%clk 00:09:21]} 42. a6
{[%clk 00:24:31]} Ra8 {[%clk 00:09:23]} 43. a7 {[%clk 00:23:27]} Rc7 {[%clk
00:09:16]} 44. Ra6+ {[%clk 00:23:19]} f6 {[%clk 00:09:20]} 45. Rb6 {[%clk
00:22:05]} Raxa7 {[%clk 00:09:21]} 46. Rxb5 {[%clk 00:21:48]} Ra4 {[%clk
00:08:35]} 47. Rd1 {[%clk 00:19:05]} Nf7 {[%clk 00:08:26]} 48. Rb6 {[%clk
00:17:58]} Ra2 {[%clk 00:08:09]} 49. d6 {[%clk 00:17:14]} Nxd6 {[%clk
00:08:05]} 50. Rdxd6 {[%clk 00:17:13]} Rxb2 {[%clk 00:08:02]} 51. Rxf6+ {[%clk
00:15:53]} Kh7 {[%clk 00:08:05]} 52. Rh6+ {[%clk 00:15:01]} Kg7 {[%clk
00:08:04]} 53. Nf5+ {[%clk 00:14:35]} 1-0

[Event "NK ABC Kwalificatie 2"]
[Site "Zoetermeer, Netherlands"]
[Date "2025.01.04"]
[Round "4.6"]
[White "Lopes, Samuel"]
[Black "Kolijn, David"]
[Result "1-0"]
[TimeControl "55+10"]
[WhiteFideId "8763414"]
[BlackFideId "8881345"]
[WhiteElo "1990"]
[BlackElo "1887"]

1. e4 {[%clk 00:52:53]} {[%emt 00:02:27]} c5 {[%clk 00:55:14]} {[%emt
00:00:06]} 2. Nc3 {[%clk 00:52:37]} {[%emt 00:00:26]} a6 {[%clk 00:54:39]}
{[%emt 00:00:44]} 3. g3 {[%clk 00:52:27]} {[%emt 00:00:20]} b5 {[%clk
00:54:28]} {[%emt 00:00:21]} 4. Bg2 {[%clk 00:52:23]} {[%emt 00:00:14]} Bb7
{[%clk 00:54:31]} {[%emt 00:00:07]} 5. Nge2 {[%clk 00:51:36]} {[%emt 00:00:57]}
e6 {[%clk 00:52:38]} {[%emt 00:02:03]} 6. O-O {[%clk 00:51:11]} {[%emt
00:00:34]} Be7 {[%clk 00:50:34]} {[%emt 00:02:14]} 7. d3 {[%clk 00:48:21]}
{[%emt 00:03:00]} Nf6 {[%clk 00:47:40]} {[%emt 00:03:05]} 8. e5 {[%clk
00:45:24]} {[%emt 00:03:07]} Nd5 {[%clk 00:44:42]} {[%emt 00:03:07]} 9. Nxd5
{[%clk 00:44:58]} {[%emt 00:00:37]} Bxd5 {[%clk 00:44:16]} {[%emt 00:00:36]} 10.
Bxd5 {[%clk 00:44:51]} {[%emt 00:00:16]} exd5 {[%clk 00:44:24]} {[%emt
00:00:02]} 11. Nf4 {[%clk 00:44:33]} {[%emt 00:00:28]} d4 {[%clk 00:36:25]}
{[%emt 00:08:09]} 12. Qg4 {[%clk 00:41:11]} {[%emt 00:03:32]} g6 {[%clk
00:29:22]} {[%emt 00:07:13]} 13. Nd5 {[%clk 00:40:30]} {[%emt 00:00:51]} h6
{[%clk 00:22:39]} {[%emt 00:06:53]} 14. Qf3 {[%clk 00:39:03]} {[%emt 00:01:37]}
Nc6 {[%clk 00:21:47]} {[%emt 00:01:03]} 15. Nf6+ {[%clk 00:35:04]} {[%emt
00:04:10]} Kf8 {[%clk 00:20:00]} {[%emt 00:01:57]} 16. Re1 {[%clk 00:23:07]}
{[%emt 00:12:07]} Rc8 {[%clk 00:12:38]} {[%emt 00:07:32]} 17. Nd5 {[%clk
00:20:49]} {[%emt 00:02:28]} Kg7 {[%clk 00:09:50]} {[%emt 00:02:58]} 18. a3
{[%clk 00:19:40]} {[%emt 00:01:20]} Rf8 {[%clk 00:07:43]} {[%emt 00:02:16]} 19.
Nf6 {[%clk 00:17:26]} {[%emt 00:02:24]} Nxe5 {[%clk 00:04:45]} {[%emt
00:03:07]} 20. Nh5+ {[%clk 00:16:52]} {[%emt 00:00:45]} gxh5 {[%clk 00:04:35]}
{[%emt 00:00:20]} 21. Rxe5 {[%clk 00:16:30]} {[%emt 00:00:32]} Bg5 {[%clk
00:03:59]} {[%emt 00:00:46]} 22. Bxg5 {[%clk 00:13:53]} {[%emt 00:02:47]} hxg5
{[%clk 00:04:03]} {[%emt 00:00:06]} 23. Qxh5 {[%clk 00:13:56]} {[%emt
00:00:06]} f6 {[%clk 00:04:01]} {[%emt 00:00:13]} 24. Rd5 {[%clk 00:12:59]}
{[%emt 00:01:07]} Qe7 {[%clk 00:03:14]} {[%emt 00:00:57]} 25. h4 {[%clk
00:11:56]} {[%emt 00:01:13]} Qf7 {[%clk 00:01:10]} {[%emt 00:02:14]} 26. Qf3
{[%clk 00:10:59]} {[%emt 00:01:07]} gxh4 {[%clk 00:01:02]} {[%emt 00:00:18]} 27.
Qg4+ {[%clk 00:10:51]} {[%emt 00:00:18]} Qg6 {[%clk 00:00:41]} {[%emt
00:00:31]} 28. Rxd7+ {[%clk 00:10:54]} {[%emt 00:00:07]} Kh6 {[%clk 00:00:37]}
{[%emt 00:00:14]} 29. Qxh4+ {[%clk 00:10:57]} {[%emt 00:00:07]} Qh5 {[%clk
00:00:31]} {[%emt 00:00:16]} 30. Rh7+ {[%clk 00:11:00]} {[%emt 00:00:08]} 1-0

[Event "NK ABC Kwalificatie 2"]
[Site "Zoetermeer, Netherlands"]
[Date "2025.01.04"]
[Round "4.7"]
[White "Pathak, Raghav"]
[Black "Seth, Aakrit"]
[Result "1-0"]
[TimeControl "55+10"]
[WhiteFideId "8923849"]
[BlackFideId "9032397"]
[WhiteElo "1926"]
[BlackElo "1876"]

1. e4 {[%clk 00:55:16]} {[%emt 00:00:03]} c5 {[%clk 00:55:17]} {[%emt
00:00:04]} 2. c3 {[%clk 00:55:21]} {[%emt 00:00:06]} g6 {[%clk 00:55:22]}
{[%emt 00:00:04]} 3. d4 {[%clk 00:55:25]} {[%emt 00:00:06]} cxd4 {[%clk
00:55:27]} {[%emt 00:00:05]} 4. cxd4 {[%clk 00:55:20]} {[%emt 00:00:15]} d5
{[%clk 00:55:32]} {[%emt 00:00:05]} 5. e5 {[%clk 00:55:14]} {[%emt 00:00:16]}
Bg7 {[%clk 00:55:28]} {[%emt 00:00:15]} 6. Nc3 {[%clk 00:55:15]} {[%emt
00:00:08]} Nc6 {[%clk 00:55:15]} {[%emt 00:00:23]} 7. h3 {[%clk 00:55:10]}
{[%emt 00:00:15]} Nh6 {[%clk 00:52:26]} {[%emt 00:02:58]} 8. Nf3 {[%clk
00:54:49]} {[%emt 00:00:31]} O-O {[%clk 00:50:55]} {[%emt 00:01:41]} 9. Qb3
{[%clk 00:54:17]} {[%emt 00:00:42]} e6 {[%clk 00:50:50]} {[%emt 00:00:15]} 10.
Bg5 {[%clk 00:54:10]} {[%emt 00:00:17]} Qb6 {[%clk 00:49:59]} {[%emt 00:01:01]}
11. Qxb6 {[%clk 00:53:32]} {[%emt 00:00:47]} axb6 {[%clk 00:50:03]} {[%emt
00:00:06]} 12. Be2 {[%clk 00:52:32]} {[%emt 00:01:10]} Nf5 {[%clk 00:49:03]}
{[%emt 00:01:10]} 13. Rd1 {[%clk 00:52:30]} {[%emt 00:00:12]} h6 {[%clk
00:47:57]} {[%emt 00:01:16]} 14. Be3 {[%clk 00:51:46]} {[%emt 00:00:52]} Bd7
{[%clk 00:45:20]} {[%emt 00:02:50]} 15. g4 {[%clk 00:51:37]} {[%emt 00:00:18]}
Nxe3 {[%clk 00:45:09]} {[%emt 00:00:21]} 16. fxe3 {[%clk 00:51:39]} {[%emt
00:00:08]} Rfc8 {[%clk 00:40:17]} {[%emt 00:05:02]} 17. O-O {[%clk 00:51:07]}
{[%emt 00:00:42]} Na5 {[%clk 00:39:53]} {[%emt 00:00:34]} 18. Nd2 {[%clk
00:49:18]} {[%emt 00:01:59]} Nc4 {[%clk 00:38:05]} {[%emt 00:01:58]} 19. Nxc4
{[%clk 00:48:35]} {[%emt 00:00:54]} dxc4 {[%clk 00:38:09]} {[%emt 00:00:05]} 20.
Bf3 {[%clk 00:48:22]} {[%emt 00:00:22]} Rab8 {[%clk 00:33:44]} {[%emt
00:04:37]} 21. Ne4 {[%clk 00:48:00]} {[%emt 00:00:31]} Bc6 {[%clk 00:32:02]}
{[%emt 00:01:52]} 22. Nd6 {[%clk 00:47:37]} {[%emt 00:00:33]} Bxf3 {[%clk
00:30:12]} {[%emt 00:02:01]} 23. Rxf3 {[%clk 00:47:26]} {[%emt 00:00:21]} Rc7
{[%clk 00:29:55]} {[%emt 00:00:27]} 24. Rdf1 {[%clk 00:47:25]} {[%emt
00:00:10]} Rf8 {[%clk 00:29:38]} {[%emt 00:00:28]} 25. Rc1 {[%clk 00:47:27]}
{[%emt 00:00:07]} Ra8 {[%clk 00:28:18]} {[%emt 00:01:30]} 26. a3 {[%clk
00:46:59]} {[%emt 00:00:38]} Bf8 {[%clk 00:28:15]} {[%emt 00:00:13]} 27. Nb5
{[%clk 00:46:58]} {[%emt 00:00:12]} Rc6 {[%clk 00:26:43]} {[%emt 00:01:42]} 28.
Rcf1 {[%clk 00:45:36]} {[%emt 00:01:31]} f5 {[%clk 00:24:58]} {[%emt 00:01:55]}
29. exf6 {[%clk 00:45:28]} {[%emt 00:00:19]} Kf7 {[%clk 00:23:54]} {[%emt
00:01:14]} 30. Rd1 {[%clk 00:43:05]} {[%emt 00:02:32]} c3 {[%clk 00:12:55]}
{[%emt 00:11:10]} 31. bxc3 {[%clk 00:41:12]} {[%emt 00:02:03]} Ra5 {[%clk
00:11:56]} {[%emt 00:01:09]} 32. Rb1 {[%clk 00:40:12]} {[%emt 00:01:10]} Bxa3
{[%clk 00:11:43]} {[%emt 00:00:22]} 33. e4 {[%clk 00:39:44]} {[%emt 00:00:39]}
Bf8 {[%clk 00:10:55]} {[%emt 00:00:58]} 34. e5 {[%clk 00:38:51]} {[%emt
00:01:04]} Rc8 {[%clk 00:07:42]} {[%emt 00:03:23]} 35. Kh1 {[%clk 00:38:24]}
{[%emt 00:00:36]} Rc6 {[%clk 00:07:12]} {[%emt 00:00:42]} 36. h4 {[%clk
00:37:29]} {[%emt 00:01:04]} Rc8 {[%clk 00:07:05]} {[%emt 00:00:16]} 37. g5
{[%clk 00:37:10]} {[%emt 00:00:30]} h5 {[%clk 00:07:09]} {[%emt 00:00:06]} 38.
Re3 {[%clk 00:36:47]} {[%emt 00:00:32]} Rc4 {[%clk 00:01:18]} {[%emt 00:06:02]}
39. Kg2 {[%clk 00:36:14]} {[%emt 00:00:41]} Ra2+ {[%clk 00:00:14]} {[%emt
00:01:15]} 40. Kh3 {[%clk 00:36:10]} {[%emt 00:00:13]} Ra5 {[%emt 00:00:11]} 41.
d5 {[%emt 00:01:02]} 1-0

[Event "NK ABC Kwalificatie 2"]
[Site "Zoetermeer, Netherlands"]
[Date "2025.01.04"]
[Round "4.8"]
[White "Etienne, Ghilon"]
[Black "Los, Evan"]
[Result "1-0"]
[TimeControl "55+10"]
[WhiteFideId "8852118"]
[BlackFideId "8887274"]
[WhiteElo "1901"]
[BlackElo "1799"]

1. d4 {[%clk 00:55:18]} {[%emt 00:00:01]} Nf6 {[%clk 00:55:10]} {[%emt
00:00:10]} 2. Nf3 {[%clk 00:55:25]} {[%emt 00:00:03]} d5 {[%clk 00:54:51]}
{[%emt 00:00:30]} 3. g3 {[%clk 00:55:32]} {[%emt 00:00:03]} Bf5 {[%clk
00:54:08]} {[%emt 00:00:53]} 4. Bg2 {[%clk 00:55:38]} {[%emt 00:00:04]} e6
{[%clk 00:54:12]} {[%emt 00:00:06]} 5. O-O {[%clk 00:55:42]} {[%emt 00:00:04]}
Be7 {[%clk 00:54:20]} {[%emt 00:00:04]} 6. c4 {[%clk 00:55:49]} {[%emt
00:00:04]} O-O {[%clk 00:54:12]} {[%emt 00:00:17]} 7. Nc3 {[%clk 00:55:42]}
{[%emt 00:00:17]} c6 {[%clk 00:53:34]} {[%emt 00:00:48]} 8. b3 {[%clk
00:55:28]} {[%emt 00:00:25]} Na6 {[%clk 00:51:05]} {[%emt 00:02:39]} 9. Bb2
{[%clk 00:55:12]} {[%emt 00:00:26]} Qc7 {[%clk 00:49:57]} {[%emt 00:01:17]} 10.
Rc1 {[%clk 00:54:24]} {[%emt 00:00:58]} Rfd8 {[%clk 00:48:18]} {[%emt
00:01:50]} 11. e3 {[%clk 00:52:29]} {[%emt 00:02:05]} Nb4 {[%clk 00:46:11]}
{[%emt 00:02:17]} 12. Ne5 {[%clk 00:52:16]} {[%emt 00:00:22]} Bd6 {[%clk
00:44:53]} {[%emt 00:01:29]} 13. a3 {[%clk 00:51:01]} {[%emt 00:01:25]} Bxe5
{[%clk 00:44:16]} {[%emt 00:00:47]} 14. dxe5 {[%clk 00:50:56]} {[%emt
00:00:15]} Nd3 {[%clk 00:43:47]} {[%emt 00:00:39]} 15. exf6 {[%clk 00:50:32]}
{[%emt 00:00:34]} Nxb2 {[%clk 00:43:44]} {[%emt 00:00:11]} 16. Qe2 {[%clk
00:50:17]} {[%emt 00:00:26]} Nd3 {[%clk 00:43:36]} {[%emt 00:00:18]} 17. Rcd1
{[%clk 00:50:25]} {[%emt 00:00:03]} Nc5 {[%clk 00:43:33]} {[%emt 00:00:13]} 18.
b4 {[%clk 00:50:21]} {[%emt 00:00:14]} Nd7 {[%clk 00:43:16]} {[%emt 00:00:27]}
19. fxg7 {[%clk 00:50:18]} {[%emt 00:00:13]} dxc4 {[%clk 00:41:33]} {[%emt
00:01:53]} 20. e4 {[%clk 00:49:41]} {[%emt 00:00:47]} Bg6 {[%clk 00:41:13]}
{[%emt 00:00:30]} 21. Qxc4 {[%clk 00:48:58]} {[%emt 00:00:53]} Ne5 {[%clk
00:40:33]} {[%emt 00:00:50]} 22. Qe2 {[%clk 00:48:55]} {[%emt 00:00:13]} Qb6
{[%clk 00:39:55]} {[%emt 00:00:49]} 23. Kh1 {[%clk 00:48:39]} {[%emt 00:00:26]}
Rxd1 {[%clk 00:39:01]} {[%emt 00:01:04]} 24. Rxd1 {[%clk 00:48:39]} {[%emt
00:00:09]} Rd8 {[%clk 00:38:57]} {[%emt 00:00:14]} 25. f4 {[%clk 00:48:44]}
{[%emt 00:00:05]} Rxd1+ {[%clk 00:38:25]} {[%emt 00:00:43]} 26. Nxd1 {[%clk
00:45:40]} {[%emt 00:03:13]} Nd7 {[%clk 00:37:53]} {[%emt 00:00:41]} 27. Qd3
{[%clk 00:44:04]} {[%emt 00:01:47]} Nf6 {[%clk 00:37:46]} {[%emt 00:00:18]} 28.
Ne3 {[%clk 00:43:56]} {[%emt 00:00:17]} h6 {[%clk 00:35:41]} {[%emt 00:02:16]}
29. f5 {[%clk 00:40:28]} {[%emt 00:03:37]} exf5 {[%clk 00:35:36]} {[%emt
00:00:16]} 30. exf5 {[%clk 00:40:23]} {[%emt 00:00:14]} Bh7 {[%clk 00:35:16]}
{[%emt 00:00:31]} 31. Nc4 {[%clk 00:34:28]} {[%emt 00:06:04]} Qf2 {[%clk
00:33:46]} {[%emt 00:01:40]} 32. Nd6 {[%clk 00:34:27]} {[%emt 00:00:10]} Ng4
{[%clk 00:31:43]} {[%emt 00:02:14]} 33. Qe4 {[%clk 00:32:50]} {[%emt 00:01:48]}
Qa2 {[%clk 00:28:34]} {[%emt 00:03:19]} 34. Qe1 {[%clk 00:31:16]} {[%emt
00:01:42]} Ne5 {[%clk 00:22:05]} {[%emt 00:06:40]} 35. h3 {[%clk 00:30:59]}
{[%emt 00:00:27]} f6 {[%clk 00:20:36]} {[%emt 00:01:40]} 36. Qe3 {[%clk
00:30:42]} {[%emt 00:00:26]} Qb1+ {[%clk 00:19:44]} {[%emt 00:01:02]} 37. Kh2
{[%clk 00:30:45]} {[%emt 00:00:07]} Bxf5 {[%clk 00:18:39]} {[%emt 00:01:15]} 38.
Qxh6 {[%clk 00:30:42]} {[%emt 00:00:13]} Ng6 {[%clk 00:18:02]} {[%emt
00:00:46]} 39. h4 {[%clk 00:29:11]} {[%emt 00:01:41]} 1-0

[Event "NK ABC Kwalificatie 2"]
[Site "Zoetermeer, Netherlands"]
[Date "2025.01.04"]
[Round "4.9"]
[White "Bruls, Sven"]
[Black "Thijssen, Freek"]
[Result "0-1"]
[TimeControl "55+10"]
[WhiteFideId "9028008"]
[BlackFideId "8806479"]
[WhiteElo "1482"]
[BlackElo "1889"]

1. Nf3 {[%clk 00:55:17]} {[%emt 00:00:03]} Nf6 {[%clk 00:55:05]} {[%emt
00:00:15]} 2. g3 {[%clk 00:55:20]} {[%emt 00:00:07]} d5 {[%clk 00:54:43]}
{[%emt 00:00:31]} 3. Bg2 {[%clk 00:55:26]} {[%emt 00:00:04]} c5 {[%clk
00:54:00]} {[%emt 00:00:53]} 4. c4 {[%clk 00:55:30]} {[%emt 00:00:07]} e6
{[%clk 00:53:40]} {[%emt 00:00:30]} 5. O-O {[%clk 00:55:35]} {[%emt 00:00:05]}
Be7 {[%clk 00:53:33]} {[%emt 00:00:16]} 6. d4 {[%clk 00:55:34]} {[%emt
00:00:11]} O-O {[%clk 00:49:22]} {[%emt 00:04:21]} 7. cxd5 {[%clk 00:55:30]}
{[%emt 00:00:15]} Nxd5 {[%clk 00:48:51]} {[%emt 00:00:41]} 8. dxc5 {[%clk
00:55:11]} {[%emt 00:00:29]} Bxc5 {[%clk 00:48:43]} {[%emt 00:00:18]} 9. e4
{[%clk 00:55:18]} {[%emt 00:00:04]} Nf6 {[%clk 00:44:58]} {[%emt 00:03:54]} 10.
Nc3 {[%clk 00:55:23]} {[%emt 00:00:06]} Nc6 {[%clk 00:44:14]} {[%emt 00:00:54]}
11. Bg5 {[%clk 00:55:24]} {[%emt 00:00:09]} Be7 {[%clk 00:38:31]} {[%emt
00:05:53]} 12. Qxd8 {[%clk 00:54:54]} {[%emt 00:00:39]} Rxd8 {[%clk 00:38:06]}
{[%emt 00:00:36]} 13. Rad1 {[%clk 00:54:53]} {[%emt 00:00:09]} e5 {[%clk
00:32:57]} {[%emt 00:05:21]} 14. Rxd8+ {[%clk 00:54:25]} {[%emt 00:00:38]} Bxd8
{[%clk 00:32:53]} {[%emt 00:00:14]} 15. Rd1 {[%clk 00:54:31]} {[%emt 00:00:05]}
Be6 {[%clk 00:27:52]} {[%emt 00:05:11]} 16. Nd5 {[%clk 00:53:58]} {[%emt
00:00:43]} Nxe4 {[%clk 00:25:24]} {[%emt 00:02:38]} 17. Bxd8 {[%clk 00:53:56]}
{[%emt 00:00:11]} Rxd8 {[%clk 00:24:57]} {[%emt 00:00:37]} 18. Ne3 {[%clk
00:52:43]} {[%emt 00:01:24]} Rxd1+ {[%clk 00:24:04]} {[%emt 00:01:03]} 19. Nxd1
{[%clk 00:52:48]} {[%emt 00:00:05]} f5 {[%clk 00:22:40]} {[%emt 00:01:33]} 20.
a3 {[%clk 00:52:47]} {[%emt 00:00:11]} Kf7 {[%clk 00:21:50]} {[%emt 00:00:59]}
21. Kf1 {[%clk 00:52:53]} {[%emt 00:00:05]} Kf6 {[%clk 00:17:13]} {[%emt
00:04:47]} 22. Ke2 {[%clk 00:52:53]} {[%emt 00:00:10]} Bc4+ {[%clk 00:16:01]}
{[%emt 00:01:22]} 23. Ke3 {[%clk 00:52:54]} {[%emt 00:00:09]} Ne7 {[%clk
00:16:01]} {[%emt 00:00:10]} 24. Nc3 {[%clk 00:52:38]} {[%emt 00:00:26]} Nxc3
{[%clk 00:15:17]} {[%emt 00:00:54]} 25. bxc3 {[%clk 00:52:45]} {[%emt
00:00:03]} Nd5+ {[%clk 00:15:00]} {[%emt 00:00:28]} 26. Kd2 {[%clk 00:52:47]}
{[%emt 00:00:07]} Nb6 {[%clk 00:13:22]} {[%emt 00:01:48]} 27. h4 {[%clk
00:52:27]} {[%emt 00:00:31]} Bd5 {[%clk 00:13:02]} {[%emt 00:00:30]} 28. Kc2
{[%clk 00:52:16]} {[%emt 00:00:19]} Nc4 {[%clk 00:12:34]} {[%emt 00:00:40]} 29.
a4 {[%clk 00:52:17]} {[%emt 00:00:10]} Bc6 {[%clk 00:12:25]} {[%emt 00:00:19]}
30. Kb3 {[%clk 00:52:04]} {[%emt 00:00:23]} Bxf3 {[%clk 00:12:27]} {[%emt
00:00:08]} 31. Bh3 {[%clk 00:51:43]} {[%emt 00:00:31]} Nd6 {[%clk 00:12:10]}
{[%emt 00:00:27]} 32. Kb4 {[%clk 00:51:40]} {[%emt 00:00:14]} Ne4 {[%clk
00:12:07]} {[%emt 00:00:13]} 33. Bf1 {[%clk 00:51:29]} {[%emt 00:00:21]} Nxf2
{[%clk 00:12:11]} {[%emt 00:00:06]} 34. Kc5 {[%clk 00:51:33]} {[%emt 00:00:05]}
Ne4+ {[%clk 00:12:11]} {[%emt 00:00:11]} 35. Kb5 {[%clk 00:51:33]} {[%emt
00:00:11]} Be2+ {[%clk 00:11:50]} {[%emt 00:00:30]} 36. Ka5 {[%clk 00:51:15]}
{[%emt 00:00:28]} b6+ {[%clk 00:11:51]} {[%emt 00:00:09]} 37. Kb4 {[%clk
00:51:19]} {[%emt 00:00:07]} Bxf1 {[%clk 00:11:53]} {[%emt 00:00:08]} 38. g4
{[%clk 00:51:21]} {[%emt 00:00:08]} fxg4 {[%clk 00:11:56]} {[%emt 00:00:06]} 39.
a5 {[%clk 00:51:27]} {[%emt 00:00:04]} g3 {[%clk 00:11:58]} {[%emt 00:00:08]}
40. axb6 {[%clk 00:51:25]} {[%emt 00:00:12]} axb6 {[%clk 00:12:04]} {[%emt
00:00:04]} 41. h5 {[%clk 00:51:27]} {[%emt 00:00:08]} g2 {[%clk 00:12:08]}
{[%emt 00:00:06]} 42. h6 {[%clk 00:51:36]} {[%emt 00:00:02]} g1=Q {[%clk
00:12:09]} {[%emt 00:00:09]} 43. c4 {[%clk 00:51:40]} {[%emt 00:00:06]} Qc5+
{[%clk 00:12:08]} {[%emt 00:00:10]} 44. Ka4 {[%clk 00:51:38]} {[%emt 00:00:12]}
Bxc4 {[%clk 00:12:06]} {[%emt 00:00:13]} 45. hxg7 {[%clk 00:51:42]} {[%emt
00:00:04]} Nc3# {[%clk 00:12:09]} {[%emt 00:00:09]} 0-1